[Event "FIDE World Rapid-ch Open 2018"]
[White "Baron, Tal"]
[Black "Ovchinnikov, Vsevolod"]
[Site "St. Petersburg"]
[Round "5.77"]
[Annotator "ChessBase"]
[Result "1-0"]
[Date "2018.12.26"]
[WhiteElo "2532"]
[BlackElo "2329"]
[PlyCount "137"]
[TimeControl "900+10"]

1. d4 {[%emt 0:0:0]} Nf6 {[%emt 0:0:0]} 2. Bf4 {[%emt 0:0:0]} g6 {[%emt 0:0:0]
} 3. Nc3 {[%emt 0:0:0]} d5 {[%emt 0:2:10]} 4. Qd2 {[%emt 0:0:0]} c6 {[%emt 0:0:52]} 5. f3 {[%emt 0:0:0]} Nbd7 {[%emt 0:1:27]} 6. 0-0-0 {[%emt 0:1:4]} b5 {[%emt 0:1:16]} 7. Qe1 {[%emt 0:5:31]} b4 {[%emt 0:5:21]
} 8. Nb1 {[%emt 0:0:30]} e6 {[%emt 0:1:51]} 9. e4 {[%emt 0:0:46]} Qa5 {[%emt 0:0:22]
} 10. a3 {[%emt 0:0:19]} Qb6 {[%emt 0:0:37]} 11. axb4 {[%emt 0:0:0]} Bxb4 {[%emt 0:0:4]} 12. c3 {[%emt 0:1:38]} Nh5 {[%emt 0:1:46]} 13. Be3 {[%emt 0:1:26]} Bf8 {[%emt 0:0:34]} 14. Rd2 {[%emt 0:1:31]} Ba6 {[%emt 0:0:5]
} 15. Bxa6 {[%emt 0:1:7]} Qxa6 {[%emt 0:0:2]} 16. Qe2 {[%emt 0:0:37]
} Qb7 {[%emt 0:0:1]} 17. g4 {[%emt 0:0:21]} Ng7 {[%emt 0:0:0]} 18. Bh6 {[%emt 0:0:8]} a5 {[%emt 0:0:20]} 19. Nh3 {[%emt 0:1:24]} a4 {[%emt 0:0:22]
} 20. Nf2 {[%emt 0:0:1]} Nb6 {[%emt 0:0:17]} 21. Rc2 {[%emt 0:0:0]} Rg8 {[%emt 0:0:21]} 22. Nd3 {[%emt 0:0:7]} Bd6 {[%emt 0:0:19]} 23. e5 {[%emt 0:0:5]} Be7 {[%emt 0:0:18]} 24. h4 {[%emt 0:0:9]} Nc4 {[%emt 0:0:0]} 25. Rh2 {[%emt 0:0:12]} Qb5 {[%emt 0:0:15]} 26. Kd1 {[%emt 0:0:26]} Kd7 {[%emt 0:0:9]} 27. Bg5 {[%emt 0:0:18]} Ne8 {[%emt 0:0:7]} 28. Bxe7 {[%emt 0:0:11]
} Kxe7 {[%emt 0:0:2]} 29. h5 {[%emt 0:0:7]} Nc7 {[%emt 0:0:0]} 30. Nb4 {[%emt 0:0:45]} Na6 {[%emt 0:0:11]} 31. Na3 {[%emt 0:0:1]} Nxa3 {[%emt 0:0:9]} 32. bxa3 {[%emt 0:0:1]} Qxe2+ {[%emt 0:0:12]} 33. Kxe2 {[%emt 0:0:3]} c5 {[%emt 0:0:4]} 34. Nxa6 {[%emt 0:0:7]} Rxa6 {[%emt 0:0:0]} 35. Rb2 {[%emt 0:0:3]} Ra7 {[%emt 0:0:13]} 36. hxg6 {[%emt 0:0:4]} hxg6 {[%emt 0:0:1]} 37. Kd3 {[%emt 0:0:43]} Rc8 {[%emt 0:0:5]} 38. dxc5 {[%emt 0:0:19]
} Rxc5 {[%emt 0:0:1]} 39. Rb4 {[%emt 0:0:8]} Rac7 {[%emt 0:0:0]} 40. Rc2 {[%emt 0:0:1]} Ra5 {[%emt 0:0:7]} 41. Rcb2 {[%emt 0:0:16]} Rac5 {[%emt 0:0:1]} 42. Rc2 {[%emt 0:0:0]} Ra5 {[%emt 0:0:1]} 43. Rb8 {[%emt 0:0:10]
} Rac5 {[%emt 0:0:21]} 44. Rb4 {[%emt 0:0:4]} Ra5 {[%emt 0:0:0]} 45. f4 {[%emt 0:0:4]} Ra8 {[%emt 0:0:30]} 46. c4 {[%emt 0:0:25]} Rh8 {[%emt 0:0:14]
} 47. Rxa4 {[%emt 0:0:13]} Rh3+ {[%emt 0:0:2]} 48. Kd2 {[%emt 0:0:12]
} Rf3 {[%emt 0:0:17]} 49. Rc3 {[%emt 0:0:18]} Rxf4 {[%emt 0:0:0]} 50. cxd5 {[%emt 0:0:14]} Rf2+ {[%emt 0:0:8]} 51. Ke1 {[%emt 0:0:1]} Rxc3 {[%emt 0:0:7]} 52. d6+ {[%emt 0:0:0]} Ke8 {[%emt 0:0:15]} 53. Ra8+ {[%emt 0:0:3]
} Kd7 {[%emt 0:0:3]} 54. Ra7+ {[%emt 0:0:6]} Ke8 {[%emt 0:0:0]} 55. Ra8+ {[%emt 0:0:12]} Kd7 {[%emt 0:0:3]} 56. Ra7+ {[%emt 0:0:7]} Ke8 {[%emt 0:0:0]} 57. Kxf2 {[%emt 0:0:1]} Rc5 {[%emt 0:0:2]} 58. Ra8+ {[%emt 0:0:18]
} Kd7 {[%emt 0:0:3]} 59. Ra7+ {[%emt 0:0:7]} Ke8 {[%emt 0:0:0]} 60. Re7+ {[%emt 0:0:1]} Kd8 {[%emt 0:0:17]} 61. Rxf7 {[%emt 0:0:2]} Rxe5 {[%emt 0:0:1]} 62. Re7 {[%emt 0:0:11]} g5 {[%emt 0:0:43]} 63. Kf3 {[%emt 0:0:11]
} Kc8 {[%emt 0:0:23]} 64. a4 {[%emt 0:0:9]} Kd8 {[%emt 0:0:0]} 65. Ra7 {[%emt 0:0:39]} Kc8 {[%emt 0:0:20]} 66. a5 {[%emt 0:0:11]} Kb8 {[%emt 0:0:8]} 67. Re7 {[%emt 0:0:8]} Rd5 {[%emt 0:0:10]} 68. Rxe6 {[%emt 0:0:5]
} Rxa5 {[%emt 0:0:2]} 69. Re8+ {[%emt 0:0:2]} 1-0

[Event "FIDE World Rapid-ch Open 2018"]
[White "Ghaem Maghami, Ehsan"]
[Black "Makoveev, Ilya"]
[Site "St. Petersburg"]
[Round "5.78"]
[Annotator "ChessBase"]
[Result "1-0"]
[Date "2018.12.26"]
[WhiteElo "2537"]
[BlackElo "2257"]
[PlyCount "83"]
[TimeControl "900+10"]

1. d4 {[%emt 0:0:6]} Nf6 {[%emt 0:0:0]} 2. Nf3 {[%emt 0:0:3]} g6 {[%emt 0:0:0]
} 3. c4 {[%emt 0:0:13]} Bg7 {[%emt 0:0:0]} 4. Nc3 {[%emt 0:0:0]} d5 {[%emt 0:0:0]} 5. cxd5 {[%emt 0:0:12]} Nxd5 {[%emt 0:0:0]} 6. e4 {[%emt 0:0:5]
} Nxc3 {[%emt 0:0:3]} 7. bxc3 {[%emt 0:0:2]} 0-0 {[%emt 0:0:0]} 8. Ba3 {[%emt 0:0:2]} Nd7 {[%emt 0:0:11]} 9. Bd3 {[%emt 0:1:8]} c5 {[%emt 0:0:5]
} 10. 0-0 {[%emt 0:0:1]} Qa5 {[%emt 0:3:31]} 11. Bb2 {[%emt 0:0:0]} b6 {[%emt 0:3:33]} 12. Nd2 {[%emt 0:3:59]} Ba6 {[%emt 0:0:11]} 13. Nc4 {[%emt 0:0:27]} Bxc4 {[%emt 0:0:2]} 14. Bxc4 {[%emt 0:0:2]} cxd4 {[%emt 0:0:9]
} 15. cxd4 {[%emt 0:0:7]} Nc5 {[%emt 0:0:3]} 16. e5 {[%emt 0:0:0]} Rad8 {[%emt 0:1:22]} 17. Qc2 {[%emt 0:0:35]} Na4 {[%emt 0:0:12]} 18. Ba3 {[%emt 0:1:31]} Rxd4 {[%emt 0:0:49]} 19. Bxe7 {[%emt 0:0:18]} Re8 {[%emt 0:1:45]
} 20. Bf6 {[%emt 0:0:9]} Nc3 {[%emt 0:2:31]} 21. Qb3 {[%emt 0:0:0]} Nd5 {[%emt 0:0:2]} 22. g3 {[%emt 0:1:50]} Qc5 {[%emt 0:2:31]} 23. Rac1 {[%emt 0:0:11]} Rf8 {[%emt 0:0:34]} 24. Rfd1 {[%emt 0:2:22]} Bxf6 {[%emt 0:0:48]
} 25. Bxd5 {[%emt 0:0:23]} Qxd5 {[%emt 0:0:14]} 26. Qxd5 {[%emt 0:0:2]
} Rxd5 {[%emt 0:0:1]} 27. Rxd5 {[%emt 0:0:2]} Be7 {[%emt 0:0:0]} 28. Rc7 {[%emt 0:0:2]} Bc5 {[%emt 0:0:1]} 29. Rxa7 {[%emt 0:0:3]} Re8 {[%emt 0:0:11]} 30. Kg2 {[%emt 0:0:4]} h5 {[%emt 0:0:3]} 31. f4 {[%emt 0:0:7]
} Rc8 {[%emt 0:0:9]} 32. Rdd7 {[%emt 0:0:24]} Be3 {[%emt 0:0:0]} 33. Rxf7 {[%emt 0:0:22]} Rc2+ {[%emt 0:0:8]} 34. Kf3 {[%emt 0:0:2]} Bc5 {[%emt 0:0:6]} 35. Rg7+ {[%emt 0:0:33]} Kf8 {[%emt 0:0:16]} 36. Rgc7 {[%emt 0:0:3]
} Rc3+ {[%emt 0:0:8]} 37. Ke4 {[%emt 0:0:3]} Re3+ {[%emt 0:0:0]} 38. Kd5 {[%emt 0:0:2]} Rd3+ {[%emt 0:0:2]} 39. Ke6 {[%emt 0:0:2]} Rd8 {[%emt 0:0:25]} 40. Rh7 {[%emt 0:0:18]} Re8+ {[%emt 0:0:13]} 41. Kf6 {[%emt 0:0:3]
} Be7+ {[%emt 0:0:12]} 42. Raxe7 {[%emt 0:0:5]} 1-0

[Event "FIDE World Rapid-ch Open 2018"]
[White "Zhigalko, Andrey"]
[Black "Shubin, Kirill"]
[Site "St. Petersburg"]
[Round "5.79"]
[Annotator "ChessBase"]
[Result "1/2-1/2"]
[Date "2018.12.26"]
[WhiteElo "2545"]
[BlackElo "2334"]
[PlyCount "119"]
[TimeControl "900+10"]

1. e4 e6 2. d4 d5 3. Nc3 Bb4 4. exd5 exd5 5. Bd3 c6 6. Nf3 Ne7 7. 0-0 0-0 8. Re1 Ng6 9. Bd2 Bd6 10. Ne5 Nd7 11. Qh5 Nf6 12. Qg5 Qb6 13. Ne2 Bxe5 14. dxe5 Ng4 15. Be3 Nxe3 16. fxe3 Qxb2 17. Nd4 c5 18. Nf3 Re8 19. Rab1 Qc3 20. Qh5 c4 21. Ng5 cxd3 22. Qxh7+ Kf8 23. Nxf7 dxc2 24. Rbc1 Nxe5 25. Nd6 Be6 26. Rf1+ Ke7 27. Nxe8 Rxe8 28. Rxc2 Qxe3+ 29. Kh1 Rg8 30. Rc7+ Nd7 31. Rxb7 Qd4 32. h3 Rc8 33. Re1 Rc6 34. Qg6 Qf6 35. Qg3 d4 36. Rxa7 Rd6 37. Qa3 Qf2 38. Qb4 d3 39. Ra6 Qc5 40. Qh4+ Nf6 41. Rxd6 Qxd6 42. Qg5 Kf7 43. a4 d2 44. Rd1 Ne4 45. Qe3 Bf5 46. a5 Bg6 47. Kg1 Kg8 48. Qb6 Qg3 49. a6 Qe1+ 50. Rxe1 dxe1=Q+ 51. Kh2 Qg3+ 52. Kg1 Ng5 53. a7 Nxh3+ 54. Kh1 Nf2+ 55. Kg1 Nh3+ 56. Kh1 Nf2+ 57. Kg1 Nh3+ 58. Kh1 Qe1+ 59. Kh2 Qe5+ 60. Kxh3 1/2-1/2

[Event "FIDE World Rapid-ch Open 2018"]
[White "Mikhalevski, Victor"]
[Black "Gaifullin, Artur"]
[Site "St. Petersburg"]
[Round "5.80"]
[Annotator "ChessBase"]
[Result "0-1"]
[Date "2018.12.26"]
[WhiteElo "2579"]
[BlackElo "2448"]
[PlyCount "46"]
[TimeControl "900+10"]

1. Nf3 {[%emt 0:0:0]} Nf6 {[%emt 0:0:0]} 2. g3 {[%emt 0:0:0]} d5 {[%emt 0:0:0]
} 3. Bg2 {[%emt 0:0:0]} c5 {[%emt 0:0:0]} 4. 0-0 {[%emt 0:0:0]} e6 {[%emt 0:0:0]} 5. c4 {[%emt 0:0:6]} d4 {[%emt 0:0:0]} 6. e3 {[%emt 0:0:5]
} Nc6 {[%emt 0:0:0]} 7. b3 {[%emt 0:0:24]} Be7 {[%emt 0:1:18]
} 8. exd4 {[%emt 0:0:8]} cxd4 {[%emt 0:0:4]} 9. Re1 {[%emt 0:0:2]} 0-0 {[%emt 0:0:6]
} 10. d3 {[%emt 0:0:17]} Ne8 {[%emt 0:0:15]} 11. Ne5 {[%emt 0:0:0]} Nxe5 {[%emt 0:0:18]} 12. Rxe5 {[%emt 0:0:2]} f6 {[%emt 0:1:6]} 13. Re1 {[%emt 0:0:2]} e5 {[%emt 0:0:22]} 14. f4 {[%emt 0:0:7]} exf4 {[%emt 0:0:0]} 15. gxf4 {[%emt 0:0:8]} Bd6 {[%emt 0:0:26]} 16. Ba3 {[%emt 0:0:15]} Qa5 {[%emt 0:0:54]} 17. c5 {[%emt 0:2:35]} Bxf4 {[%emt 0:1:35]} 18. c6 {[%emt 0:0:7]
} Bg4 {[%emt 0:0:5]} 19. b4 {[%emt 0:4:44]} Bxh2+ {[%emt 0:0:0]} 20. Kf2 {[%emt 0:1:48]} Qf5+ {[%emt 0:0:24]} 21. Bf3 {[%emt 0:0:1]} Qf4 {[%emt 0:0:46]} 22. Qb3+ {[%emt 0:5:22]} Kh8 {[%emt 0:0:1]} 23. Nd2 {[%emt 0:0:2]
} Qxd2+ {[%emt 0:0:35]} 0-1

[Event "FIDE World Rapid-ch Open 2018"]
[White "Belozerov, Andrei"]
[Black "Yeritsyan, Aram"]
[Site "St. Petersburg"]
[Round "5.81"]
[Annotator "ChessBase"]
[Result "1-0"]
[Date "2018.12.26"]
[WhiteElo "2528"]
[BlackElo "2372"]
[PlyCount "115"]
[TimeControl "900+10"]

1. e4 {[%emt 0:0:0]} e5 {[%emt 0:0:0]} 2. Nf3 {[%emt 0:0:10]} Nc6 {[%emt 0:0:10]
} 3. Nc3 {[%emt 0:0:10]} Nf6 {[%emt 0:0:10]} 4. Bc4 {[%emt 0:0:0]} Bc5 {[%emt 0:0:13]} 5. d3 {[%emt 0:0:10]} h6 {[%emt 0:0:10]} 6. a3 {[%emt 0:0:23]
} a6 {[%emt 0:0:14]} 7. Be3 {[%emt 0:0:10]} d6 {[%emt 0:0:14]} 8. Bxc5 {[%emt 0:2:40]} dxc5 {[%emt 0:0:10]} 9. Bd5 {[%emt 0:0:10]} Nxd5 {[%emt 0:1:59]
} 10. exd5 {[%emt 0:0:10]} Ne7 {[%emt 0:0:10]} 11. Nxe5 {[%emt 0:0:19]
} Nxd5 {[%emt 0:0:12]} 12. Qf3 {[%emt 0:0:12]} Be6 {[%emt 0:0:0]} 13. 0-0 {[%emt 0:1:40]} 0-0 {[%emt 0:0:10]} 14. Rfe1 {[%emt 0:0:10]} Qd6 {[%emt 0:1:42]} 15. Nc4 {[%emt 0:1:5]} Qd7 {[%emt 0:0:10]} 16. Ne4 {[%emt 0:0:37]
} b6 {[%emt 0:1:30]} 17. Ne5 {[%emt 0:0:14]} Qa4 {[%emt 0:0:0]} 18. b3 {[%emt 0:4:55]} Qe8 {[%emt 0:1:22]} 19. Qg3 {[%emt 0:0:33]} Kh8 {[%emt 0:0:57]} 20. Qh4 {[%emt 0:0:30]} Qe7 {[%emt 0:3:34]} 21. Qh5 {[%emt 0:0:57]
} Nf6 {[%emt 0:0:32]} 22. Nxf6 {[%emt 0:0:10]} Qxf6 {[%emt 0:0:0]} 23. Re3 {[%emt 0:0:16]} Rae8 {[%emt 0:0:19]} 24. Rae1 {[%emt 0:0:10]
} Kh7 {[%emt 0:0:51]} 25. h3 {[%emt 0:0:42]} Qg5 {[%emt 0:0:37]} 26. Qxg5 {[%emt 0:0:25]
} hxg5 {[%emt 0:0:10]} 27. Nf3 {[%emt 0:0:10]} Bd7 {[%emt 0:0:0]} 28. Nxg5+ Kg6 29. f4 {[%emt 0:0:43]} a5 {[%emt 0:0:23]} 30. Nf3 {[%emt 0:0:35]
} f6 {[%emt 0:0:10]} 31. Re7 {[%emt 0:0:14]} Rxe7 {[%emt 0:0:0]} 32. Rxe7 Rd8 33. a4 {[%emt 0:0:53]} Kh7 {[%emt 0:0:20]} 34. Kf2 {[%emt 0:0:19]
} Kg8 {[%emt 0:0:10]} 35. g4 {[%emt 0:0:10]} Kf8 {[%emt 0:0:0]} 36. Re3 {[%emt 0:0:10]} Re8 {[%emt 0:0:10]} 37. Rxe8+ {[%emt 0:0:10]} Bxe8 {[%emt 0:0:10]} 38. f5 {[%emt 0:0:10]} Ke7 {[%emt 0:0:10]} 39. Ke3 {[%emt 0:0:10]
} Kd6 {[%emt 0:0:10]} 40. Nd2 {[%emt 0:0:21]} Kd5 {[%emt 0:0:0]} 41. Ne4 {[%emt 0:0:10]} Ke5 {[%emt 0:0:10]} 42. Ng3 {[%emt 0:0:16]} Bf7 {[%emt 0:0:10]} 43. Ne2 {[%emt 0:0:10]} c6 {[%emt 0:0:10]} 44. d4+ {[%emt 0:0:0]} cxd4+ {[%emt 0:0:10]} 45. Nxd4 {[%emt 0:0:10]} Kd5 {[%emt 0:0:10]} 46. c4+ {[%emt 0:0:10]} Kd6 {[%emt 0:0:10]} 47. Ke4 {[%emt 0:0:10]} c5 {[%emt 0:0:12]
} 48. Nb5+ {[%emt 0:0:10]} Kc6 {[%emt 0:0:10]} 49. Nc3 {[%emt 0:0:10]
} Kd6 {[%emt 0:0:10]} 50. Nd5 {[%emt 0:0:10]} Kc6 {[%emt 0:0:0]} 51. h4 {[%emt 0:0:10]} Be8 {[%emt 0:0:10]} 52. g5 {[%emt 0:0:10]} fxg5 {[%emt 0:0:10]} 53. hxg5 {[%emt 0:0:10]} Bf7 {[%emt 0:0:10]} 54. Ke5 {[%emt 0:0:10]
} Be8 {[%emt 0:0:10]} 55. f6 {[%emt 0:0:10]} gxf6+ {[%emt 0:0:0]} 56. gxf6 {[%emt 0:0:10]} Bf7 {[%emt 0:0:10]} 57. Kf5 {[%emt 0:0:10]} Bg8 {[%emt 0:0:10]} 58. Kg6 {[%emt 0:0:10]} 1-0

[Event "FIDE World Rapid-ch Open 2018"]
[White "Lobanov, Sergei"]
[Black "Jones, Gawain C B"]
[Site "St. Petersburg"]
[Round "5.82"]
[Annotator "RC"]
[Result "0-1"]
[Date "2018.12.26"]
[WhiteElo "2526"]
[BlackElo "2682"]
[PlyCount "74"]
[TimeControl "900+10"]

1. e4 {[%emt 0:0:0]} c5 {[%emt 0:0:0]} 2. Nf3 {[%emt 0:0:0]} d6 {[%emt 0:0:0]} 3. d4 {[%emt 0:0:0]} cxd4 {[%emt 0:0:0]} 4. Nxd4 {[%emt 0:0:0]} Nf6 {[%emt 0:0:0]} 5. Nc3 {[%emt 0:0:0]} g6 {[%emt 0:0:0]} 6. Be3 {[%emt 0:0:1]
} Bg7 {[%emt 0:0:0]} 7. f3 {[%emt 0:0:3]} Nc6 {[%emt 0:0:1]
} 8. Qd2 {[%emt 0:0:1]} 0-0 {[%emt 0:0:2]} 9. 0-0-0 {[%emt 0:0:3]} d5 {[%emt 0:0:1]
} 10. exd5 {[%emt 0:0:6]} Nxd5 {[%emt 0:0:2]} 11. Nxc6 {[%emt 0:0:5]
} bxc6 {[%emt 0:0:1]} 12. Bd4 {[%emt 0:0:1]} Bxd4 {[%emt 0:0:0]} 13. Qxd4 {[%emt 0:0:3]} Qc7 {[%emt 0:0:18]} 14. h4 {[%emt 0:3:45]} Rd8 {[%emt 0:0:25]} 15. h5 {[%emt 0:0:27]} Bf5 {[%emt 0:0:2]} 16. hxg6 {[%emt 0:3:20]
} Bxg6 {[%emt 0:0:4]} 17. Re1 {[%emt 0:4:8]} Rab8 {[%emt 0:0:0]} 18. Nxd5 {[%emt 0:0:27]} Rxd5 {[%emt 0:0:36]} 19. Qe3 {[%emt 0:2:23]
} Qd6 {[%emt 0:2:2]} 20. Bc4 {[%emt 0:1:2]} Rd4 {[%emt 0:1:57]} 21. Bb3 {[%emt 0:1:20]
} a5 {[%emt 0:0:2]} 22. Rd1 {[%emt 0:0:58]} c5 {[%emt 0:0:28]
} 23. c3 {[%emt 0:0:7]} Qc7 {[%emt 0:2:21]} 24. Bc2 {[%emt 0:0:24]} Qb6 {[%emt 0:0:33]
} 25. b3 {[%emt 0:0:8]} Rxd1+ {[%emt 0:0:3]} 26. Rxd1 {[%emt 0:0:2]
} a4 {[%emt 0:0:2]} 27. c4 {[%emt 0:0:16]} Qf6 {[%emt 0:0:22]
} 28. Bxg6 {[%emt 0:0:8]} hxg6 {[%emt 0:0:16]} 29. Kc2 {[%emt 0:0:14]} axb3+ {[%emt 0:0:12]} 30. axb3 {[%emt 0:0:1]} Ra8 {[%emt 0:0:2]} 31. Rd2 {[%emt 0:0:22]
} Qa1 {[%emt 0:1:11]} 32. Kd3 {[%emt 0:0:14]} Qb1+ {[%emt 0:0:0]} 33. Ke2 {[%emt 0:0:1]} Ra1 {[%emt 0:0:7]} 34. Qf2 {[%emt 0:0:1]} Kg7 {[%emt 0:0:32]} 35. g4 {[%emt 0:0:22]} Ra6 {[%emt 0:0:24]} 36. Rd3 {[%emt 0:0:0]} Re6+ {[%emt 0:0:57]} 37. Re3 {[%emt 0:0:3]} Rd6 {[%emt 0:0:7]} 0-1

[Event "FIDE World Rapid-ch Open 2018"]
[White "Paravyan, David"]
[Black "Kazhgaleyev, Murtas"]
[Site "St. Petersburg"]
[Round "5.83"]
[Annotator "RC"]
[Result "1-0"]
[Date "2018.12.26"]
[WhiteElo "2634"]
[BlackElo "2587"]
[PlyCount "111"]
[TimeControl "900+10"]

1. e4 {[%emt 0:0:0]} e5 {[%emt 0:0:0]} 2. Nf3 {[%emt 0:0:0]} Nc6 {[%emt 0:0:0]
} 3. Bb5 {[%emt 0:0:0]} a6 {[%emt 0:0:0]} 4. Ba4 {[%emt 0:0:0]} Nf6 {[%emt 0:0:0]} 5. 0-0 {[%emt 0:0:0]} Be7 {[%emt 0:0:1]} 6. d3 {[%emt 0:0:0]
} d6 {[%emt 0:0:3]} 7. c3 {[%emt 0:0:0]} 0-0 {[%emt 0:0:4]} 8. Nbd2 {[%emt 0:0:1]} Re8 {[%emt 0:0:3]} 9. d4 {[%emt 0:0:2]} b5 {[%emt 0:0:23]
} 10. Bc2 {[%emt 0:0:2]} Bf8 {[%emt 0:0:9]} 11. a4 {[%emt 0:0:0]} Bb7 {[%emt 0:0:2]} 12. Re1 {[%emt 0:0:6]} exd4 {[%emt 0:0:32]} 13. cxd4 {[%emt 0:0:1]} Nb4 {[%emt 0:0:2]} 14. Bb1 {[%emt 0:0:2]} c5 {[%emt 0:0:6]
} 15. d5 {[%emt 0:0:5]} Nd7 {[%emt 0:0:7]} 16. Nf1 {[%emt 0:0:0]} c4 {[%emt 0:1:9]} 17. Be3 {[%emt 0:0:23]} Nc5 {[%emt 0:2:10]} 18. axb5 {[%emt 0:0:15]} axb5 {[%emt 0:1:20]} 19. Rxa8 {[%emt 0:0:2]} Qxa8 {[%emt 0:0:7]
} 20. Bxc5 {[%emt 0:0:6]} dxc5 {[%emt 0:0:2]} 21. Ng3 {[%emt 0:1:6]
} g6 {[%emt 0:0:11]} 22. Qd2 {[%emt 0:0:32]} Bg7 {[%emt 0:0:0]} 23. h4 {[%emt 0:0:46]} Qa1 {[%emt 0:2:21]} 24. e5 {[%emt 0:0:15]} Qa8 {[%emt 0:0:14]
} 25. d6 {[%emt 0:1:16]} Bxf3 {[%emt 0:0:5]} 26. gxf3 {[%emt 0:0:2]
} Rxe5 {[%emt 0:1:12]} 27. d7 {[%emt 0:5:12]} Qd8 {[%emt 0:0:0]} 28. Rxe5 {[%emt 0:0:37]} Bxe5 {[%emt 0:0:3]} 29. Ne4 {[%emt 0:0:1]} Bd4 {[%emt 0:1:26]} 30. Kg2 {[%emt 0:2:12]} Nc6 {[%emt 0:1:0]} 31. Nxc5 {[%emt 0:0:48]
} Bxc5 {[%emt 0:0:9]} 32. Qd5 {[%emt 0:0:2]} Nd4 {[%emt 0:0:0]} 33. Qxc5 {[%emt 0:0:13]} Qxd7 {[%emt 0:0:2]} 34. h5 {[%emt 0:1:20]} Ne6 {[%emt 0:0:27]} 35. Qe5 {[%emt 0:0:8]} Qc7 {[%emt 0:1:10]} 36. Qxb5 {[%emt 0:0:9]
} Nf4+ {[%emt 0:0:8]} 37. Kg1 {[%emt 0:0:1]} Nxh5 {[%emt 0:0:0]} 38. Ba2 {[%emt 0:0:1]} Qf4 {[%emt 0:0:46]} 39. Bxc4 {[%emt 0:1:6]} Kg7 {[%emt 0:0:23]} 40. Be2 {[%emt 0:0:22]} Qd4 {[%emt 0:0:24]} 41. Bf1 {[%emt 0:0:22]
} Nf6 {[%emt 0:0:21]} 42. b4 {[%emt 0:0:22]} Nd5 {[%emt 0:0:0]} 43. Qd7 {[%emt 0:0:1]} Qd1 {[%emt 0:0:37]} 44. Qg4 {[%emt 0:0:47]} h5 {[%emt 0:0:29]} 45. Qe4 {[%emt 0:0:22]} Nf6 {[%emt 0:0:10]} 46. Qf4 {[%emt 0:0:28]
} Qd5 {[%emt 0:0:16]} 47. b5 {[%emt 0:0:8]} Qc5 {[%emt 0:0:0]} 48. Qb8 {[%emt 0:0:15]} Nd7 {[%emt 0:0:3]} 49. Qf4 {[%emt 0:0:54]} Nb6 {[%emt 0:0:8]} 50. Kg2 {[%emt 0:0:12]} Nd7 {[%emt 0:0:4]} 51. Qd2 {[%emt 0:0:18]
} Nb6 {[%emt 0:0:9]} 52. Qb2+ {[%emt 0:0:7]} Kg8 {[%emt 0:0:0]} 53. Qf6 {[%emt 0:0:2]} Nd5 {[%emt 0:0:20]} 54. Qe5 {[%emt 0:0:6]} f6 {[%emt 0:0:6]} 55. Qe4 {[%emt 0:0:29]} g5 {[%emt 0:0:25]} 56. Bc4 {[%emt 0:0:0]} 1-0

[Event "FIDE World Rapid-ch Open 2018"]
[White "Zvjaginsev, Vadim"]
[Black "Apryshko, Gleb"]
[Site "St. Petersburg"]
[Round "5.84"]
[Annotator "RC"]
[Result "1-0"]
[Date "2018.12.26"]
[WhiteElo "2642"]
[BlackElo "2385"]
[PlyCount "80"]
[TimeControl "900+10"]

1. g3 {[%emt 0:0:0]} h5 {[%emt 0:0:18]} 2. Nf3 {[%emt 0:0:8]} c5 {[%emt 0:0:0]} 3. e4 {[%emt 0:0:29]} Nc6 {[%emt 0:0:8]} 4. c3 {[%emt 0:0:54]} d5 {[%emt 0:0:9]
} 5. exd5 {[%emt 0:0:41]} Qxd5 {[%emt 0:0:1]} 6. Bg2 {[%emt 0:0:0]} Qd3 {[%emt 0:0:11]} 7. Qe2 {[%emt 0:1:5]} Bf5 {[%emt 0:0:2]} 8. Nh4 {[%emt 0:1:44]} Bh7 {[%emt 0:2:34]} 9. Qxh5 {[%emt 0:0:14]} e6 {[%emt 0:0:0]} 10. Qe2 {[%emt 0:1:3]} 0-0-0 {[%emt 0:0:37]} 11. f4 {[%emt 0:0:33]} Nf6 {[%emt 0:2:34]} 12. Qxd3 {[%emt 0:1:59]} Bxd3 {[%emt 0:0:3]} 13. Nf3 {[%emt 0:0:2]
} Ne4 {[%emt 0:0:17]} 14. b3 {[%emt 0:0:22]} Be7 {[%emt 0:0:0]} 15. Na3 {[%emt 0:0:16]} Bf6 {[%emt 0:1:59]} 16. Bb2 {[%emt 0:0:38]} b5 {[%emt 0:0:22]} 17. 0-0-0 {[%emt 0:0:37]} Nf2 {[%emt 0:1:8]} 18. Ne1 {[%emt 0:0:36]
} Be2 {[%emt 0:0:32]} 19. Bxc6 {[%emt 0:0:15]} Nxh1 {[%emt 0:0:0]} 20. Bxh1 {[%emt 0:0:10]} Bxd1 {[%emt 0:0:20]} 21. Kxd1 {[%emt 0:0:0]} Rxh2 {[%emt 0:0:1]} 22. Bg2 {[%emt 0:0:5]} b4 {[%emt 0:0:29]} 23. Nb1 {[%emt 0:0:12]} g5 {[%emt 0:1:53]} 24. fxg5 {[%emt 0:0:15]} Bg7 {[%emt 0:0:0]} 25. Kc2 {[%emt 0:1:10]} Kc7 {[%emt 0:0:23]} 26. Bc1 {[%emt 0:0:44]} a5 {[%emt 0:0:22]} 27. a4 {[%emt 0:0:41]} Kb6 {[%emt 0:0:9]} 28. d3 {[%emt 0:0:0]} Be5 {[%emt 0:0:1]} 29. Bf4 {[%emt 0:0:24]} Bxf4 {[%emt 0:0:0]} 30. gxf4 Rh4 31. Nd2 {[%emt 0:0:52]} Rxf4 {[%emt 0:0:3]} 32. Be4 {[%emt 0:0:21]
} Rf2 {[%emt 0:0:13]} 33. Nef3 {[%emt 0:0:4]} Rh8 {[%emt 0:0:14]} 34. cxb4 {[%emt 0:0:41]} cxb4 {[%emt 0:0:0]} 35. d4 {[%emt 0:0:2]} Rc8+ {[%emt 0:0:0]} 36. Kd1 {[%emt 0:0:2]} Rc3 {[%emt 0:0:20]} 37. Ke1 {[%emt 0:0:5]} Rg2 {[%emt 0:0:6]} 38. Kf1 {[%emt 0:0:3]} Rg4 {[%emt 0:0:6]} 39. Kf2 {[%emt 0:0:8]
} Kc7 {[%emt 0:1:9]} 40. d5 {[%emt 0:0:28]} Kd8 {[%emt 0:0:0]} 1-0

[Event "FIDE World Rapid-ch Open 2018"]
[White "Zubritskiy, Artyom"]
[Black "Yilmaz, Mustafa"]
[Site "St. Petersburg"]
[Round "5.85"]
[Annotator "RC"]
[Result "0-1"]
[Date "2018.12.26"]
[WhiteElo "2442"]
[BlackElo "2636"]
[PlyCount "134"]
[TimeControl "900+10"]

1. d4 {[%emt 0:0:0]} Nf6 {[%emt 0:0:0]} 2. c4 {[%emt 0:0:0]} e6 {[%emt 0:0:0]} 3. g3 {[%emt 0:0:0]} c5 {[%emt 0:0:0]} 4. d5 {[%emt 0:0:2]} exd5 {[%emt 0:0:0]} 5. cxd5 {[%emt 0:0:1]} d6 {[%emt 0:0:0]} 6. Nc3 {[%emt 0:0:0]} g6 {[%emt 0:0:3]} 7. Bg2 {[%emt 0:0:1]} Bg7 {[%emt 0:0:1]} 8. Nf3 {[%emt 0:0:1]} 0-0 {[%emt 0:0:5]} 9. 0-0 {[%emt 0:0:2]} Re8 {[%emt 0:0:0]} 10. Nd2 {[%emt 0:0:11]} b6 {[%emt 0:1:7]} 11. a4 {[%emt 0:0:13]} Nbd7 {[%emt 0:0:17]} 12. Nc4 {[%emt 0:0:59]} Ne5 {[%emt 0:0:3]} 13. Na3 {[%emt 0:0:1]
} Nh5 {[%emt 0:0:44]} 14. h3 {[%emt 0:3:54]} a6 {[%emt 0:2:17]
} 15. Qc2 {[%emt 0:5:35]} f5 {[%emt 0:0:48]} 16. e3 {[%emt 0:0:50]} b5 {[%emt 0:0:49]
} 17. Ne2 {[%emt 0:0:13]} Bd7 {[%emt 0:0:50]} 18. Ra2 {[%emt 0:0:0]} Rc8 {[%emt 0:3:11]} 19. f4 {[%emt 0:1:1]} Nf7 {[%emt 0:0:16]} 20. Bd2 {[%emt 0:0:1]} c4 {[%emt 0:0:21]} 21. Qc1 {[%emt 0:0:30]} Qb6 {[%emt 0:0:0]} 22. Nc2 {[%emt 0:0:3]} Nf6 {[%emt 0:0:15]} 23. a5 {[%emt 0:0:45]} Qb7 {[%emt 0:0:33]} 24. Bc3 {[%emt 0:0:13]} Ne4 {[%emt 0:0:24]} 25. Bxg7 {[%emt 0:0:23]
} Kxg7 {[%emt 0:0:2]} 26. Nb4 {[%emt 0:0:1]} Qa7 {[%emt 0:0:0]} 27. Bxe4 {[%emt 0:0:46]} Rxe4 {[%emt 0:0:2]} 28. Qc3+ {[%emt 0:0:1]} Kg8 {[%emt 0:0:1]} 29. Nd4 {[%emt 0:0:3]} Rce8 {[%emt 0:0:2]} 30. Kf2 {[%emt 0:0:30]
} Nd8 {[%emt 0:0:34]} 31. Re1 {[%emt 0:0:4]} Nb7 32. Ra3 {[%emt 0:0:13]
} Nc5 {[%emt 0:0:16]} 33. Qd2 {[%emt 0:0:3]} Bc8 {[%emt 0:0:0]} 34. Kg1 {[%emt 0:0:18]} Qe7 {[%emt 0:0:18]} 35. Rc3 {[%emt 0:0:11]} Bb7 {[%emt 0:0:40]} 36. Nf3 {[%emt 0:0:1]} h6 {[%emt 0:0:14]} 37. Nd4 {[%emt 0:0:0]} Qf6 {[%emt 0:0:26]} 38. Kf1 {[%emt 0:0:4]} R4e7 {[%emt 0:0:14]} 39. Ra3 {[%emt 0:0:20]} Ne4 {[%emt 0:0:27]} 40. Qg2 {[%emt 0:0:2]} Nc5 {[%emt 0:0:9]
} 41. Qf3 {[%emt 0:0:16]} Kh7 {[%emt 0:0:15]} 42. Re2 {[%emt 0:0:0]} Re4 {[%emt 0:0:10]} 43. Kf2 {[%emt 0:0:17]} Qf7 {[%emt 0:0:11]} 44. Rd2 {[%emt 0:0:7]} R4e7 {[%emt 0:0:22]} 45. Rd1 {[%emt 0:0:1]} Ne4+ {[%emt 0:0:3]
} 46. Kg2 {[%emt 0:0:2]} c3 {[%emt 0:0:14]} 47. bxc3 {[%emt 0:0:0]} Nf6 {[%emt 0:0:1]} 48. c4 {[%emt 0:0:2]} bxc4 {[%emt 0:0:3]} 49. Ndc6 {[%emt 0:0:3]} Re4 {[%emt 0:0:9]} 50. Kg1 {[%emt 0:0:31]} Nxd5 {[%emt 0:0:28]
} 51. Nxd5 {[%emt 0:0:12]} Bxc6 {[%emt 0:0:3]} 52. Nc3 {[%emt 0:0:0]
} Qc7 {[%emt 0:1:18]} 53. Nxe4 {[%emt 0:0:3]} Bxe4 {[%emt 0:0:0]} 54. Qf2 {[%emt 0:0:1]} c3 {[%emt 0:0:30]} 55. Rc1 {[%emt 0:0:2]} c2 {[%emt 0:0:0]} 56. Qd2 {[%emt 0:0:1]} Rc8 {[%emt 0:0:30]} 57. Rb3 {[%emt 0:0:50]
} Qc4 {[%emt 0:1:0]} 58. Rb4 {[%emt 0:0:29]} Qc5 {[%emt 0:0:0]} 59. Rd4 {[%emt 0:0:9]} Rc6 {[%emt 0:0:53]} 60. Kf2 {[%emt 0:0:2]} h5 {[%emt 0:0:1]} 61. h4 {[%emt 0:0:7]} Qa3 {[%emt 0:0:7]} 62. Rb4 {[%emt 0:0:0]} Rc7 {[%emt 0:0:35]} 63. Rb6 {[%emt 0:0:11]} d5 {[%emt 0:0:6]} 64. Ke2 {[%emt 0:0:9]} d4 {[%emt 0:0:7]} 65. Kf2 {[%emt 0:0:10]} Rc3 {[%emt 0:0:0]} 66. Qxd4 {[%emt 0:0:13]} Rd3 {[%emt 0:0:1]} 67. Qf6 {[%emt 0:0:5]} Rd2+ {[%emt 0:0:2]} 0-1